bitfinex-derivatives/quotes_BTCF0:USTF0_20210108
["timestamp","ask_amount","ask_price","bid_price","bid_amount"]
[1610095727441,0.13632608,38515.0,38514.0,0.00029709]
[1610095727643,0.13632608,38515.0,38510.0,0.00029709]
[1610095727941,0.13632608,38515.0,38514.0,0.00029709]
[1610095728140,0.13632608,38515.0,38511.0,0.00029709]
[1610095728343,0.13632608,38515.0,38514.0,0.00029709]
[1610095728643,0.13632608,38515.0,38512.0,0.00029709]
[1610095729042,0.13632608,38515.0,38514.0,0.00029709]
[1610095729244,0.13632608,38515.0,38505.0,0.13632608]
[1610095729245,0.13632608,38515.0,38513.0,0.00029709]
[1610095729443,0.13632608,38515.0,38506.0,0.00029709]
[1610095729642,0.13632608,38515.0,38514.0,0.00029709]
[1610095730044,0.13632608,38515.0,38506.0,0.00029709]
[1610095730445,0.13632608,38507.0,38506.0,0.00029709]
[1610095732346,0.13632608,38507.0,38506.0,0.03201226]
[1610095733248,3.66922608,38507.0,38505.0,0.03201425]
[1610095733447,3.66922608,38507.0,38489.0,0.10386]
[1610095733750,1.63632608,38507.0,38489.0,0.06343589]
[1610095733948,1.63632608,38507.0,38490.0,0.03201594]
[1610095734149,3.906,38492.0,38490.0,0.03201594]
[1610095734450,0.13632608,38491.0,38482.0,0.03202091]
[1610095734648,3.87962608,38491.0,38474.0,0.13632608]
[1610095735048,3.87962608,38491.0,38483.0,0.0320227]
[1610095735249,3.87962608,38491.0,38475.0,0.03202413]
[1610095735448,3.87962608,38491.0,38484.0,0.0320247]
[1610095735848,3.87962608,38491.0,38476.0,0.03202482]
[1610095736148,3.87962608,38491.0,38485.0,0.03202465]
[1610095736349,3.87962608,38491.0,38477.0,0.03202482]
[1610095736650,0.13632608,38478.0,38474.0,0.13632608]
[1610095737052,0.13632608,38478.0,38475.0,0.03202486]
[1610095739654,0.13632608,38478.0,38474.0,0.13632608]
[1610095739952,0.13632608,38478.0,38476.0,0.03203219]
[1610095740352,0.13632608,38478.0,38475.0,0.03203225]
[1610095740553,0.13632608,38478.0,38474.0,0.13632608]
[1610095740554,0.13632608,38478.0,38477.0,0.03203275]
[1610095740752,0.13632608,38478.0,38476.0,0.03203296]
[1610095740953,0.12121,38496.0,38477.0,0.03203298]
[1610095741161,2.9909,38503.0,38477.0,0.03203298]
[1610095741658,2.9909,38503.0,38478.0,0.000302]
[1610095741856,0.1569,38506.0,38478.0,0.000302]
[1610095741857,0.1569,38506.0,38478.0,0.00030198]
[1610095742158,0.1569,38506.0,38481.0,3.9627]
[1610095742355,0.11422,38514.0,38481.0,3.9627]
[1610095742555,0.11422,38514.0,38500.0,0.13632608]
[1610095742957,0.11422,38514.0,38501.0,0.00030196]
[1610095743157,0.1569,38520.0,38501.0,0.00030196]
[1610095743958,0.18687835,38491.0,38486.0,0.07923]
[1610095744459,0.18687835,38491.0,38490.0,0.13632608]
[1610095744958,0.18687835,38491.0,38490.0,0.72745006]
[1610095746458,0.32320443,38491.0,38490.0,0.72745006]
[1610095746861,0.32320443,38491.0,38490.0,0.79089145]
[1610095747060,0.32320443,38491.0,38490.0,0.72745006]
[1610095748961,0.32320443,38491.0,38490.0,0.79088973]
[1610095750862,0.18687835,38491.0,38490.0,0.79088973]
[1610095761772,0.18687835,38491.0,38490.0,0.72745006]
[1610095762871,0.18687835,38491.0,38490.0,0.7908812]
[1610095763675,0.18687835,38491.0,38490.0,0.03202398]
[1610095764277,0.18687835,38491.0,38487.0,0.03201942]
[1610095764475,0.18687835,38491.0,38490.0,0.03202094]
[1610095764675,0.32320443,38491.0,38488.0,0.03202193]
[1610095764974,0.32320443,38491.0,38490.0,0.03202154]
[1610095765181,0.32320443,38491.0,38489.0,0.03202196]
[1610095765675,0.32320443,38491.0,38490.0,0.03202437]
[1610095765976,0.32320443,38491.0,38477.0,0.0954619]
[1610095766375,0.32320443,38491.0,38490.0,0.03202571]
[1610095766676,0.18687835,38491.0,38484.0,0.13632608]
[1610095766876,0.18687835,38491.0,38490.0,0.03202513]
[1610095767176,0.18687835,38491.0,38485.0,0.03202477]
[1610095767376,0.18687835,38491.0,38490.0,0.03202417]
[1610095767576,0.18687835,38491.0,38486.0,0.0320248]
[1610095767776,0.18687835,38491.0,38490.0,0.03202487]
[1610095768077,0.18687835,38491.0,38485.0,0.03202506]
[1610095768383,0.18687835,38491.0,38490.0,0.03202503]
[1610095768579,0.18687835,38491.0,38484.0,0.25050608]
[1610095768580,0.32320443,38491.0,38486.0,0.03202542]
[1610095768978,0.32320443,38491.0,38485.0,0.03202683]
[1610095769180,0.32320443,38491.0,38487.0,0.03202787]
[1610095769378,0.32320443,38491.0,38486.0,0.03202846]
[1610095769679,0.32320443,38491.0,38477.0,0.09546673]
[1610095769878,0.32320443,38491.0,38487.0,0.03202909]
[1610095770278,0.32320443,38491.0,38477.0,0.06343807]
[1610095770279,0.32320443,38491.0,38478.0,0.03202907]
[1610095770581,0.32320443,38491.0,38488.0,0.03202964]
[1610095770780,0.32320443,38491.0,38479.0,0.03203012]
[1610095770980,1.5,38490.0,38477.0,0.03203066]
[1610095771184,3.3315,38489.0,38477.0,0.03203066]
[1610095771381,1.5,38488.0,38480.0,0.03203148]
[1610095771584,1.5,38488.0,38461.0,4.349]
[1610095771585,1.5,38488.0,38478.0,0.03203234]
[1610095771780,1.5,38488.0,38481.0,0.03203306]
[1610095771980,1.5,38488.0,38479.0,0.03203416]
[1610095772381,1.5,38488.0,38482.0,0.0320355]
[1610095772581,0.13632608,38483.0,38466.0,0.0320354]
[1610095772779,2.08652608,38483.0,38462.0,0.0634621]
[1610095773180,2.08652608,38483.0,38467.0,0.03203576]
[1610095773382,2.08652608,38483.0,38466.0,0.03203625]
[1610095773581,2.08652608,38483.0,38468.0,0.03203725]
[1610095773884,0.58652608,38483.0,38467.0,0.03203739]
[1610095774180,0.58652608,38483.0,38469.0,0.03203739]
[1610095774381,0.58652608,38483.0,38466.0,0.03203759]
[1610095774582,0.13632608,38467.0,38466.0,0.03203759]
[1610095774781,0.13632608,38467.0,38462.0,0.0634621]
[1610095775183,0.13632608,38467.0,38461.0,0.03203751]
[1610095775583,0.13632608,38467.0,38463.0,0.03203735]
[1610095775783,0.13632608,38467.0,38462.0,0.03203696]
[1610095775983,0.13632608,38467.0,38461.0,0.03203687]
[1610095776284,0.13632608,38467.0,38463.0,0.03203641]
[1610095776486,0.13632608,38467.0,38462.0,0.03203657]
[1610095776684,0.13632608,38467.0,38466.0,0.13632608]
[1610095776984,0.13632608,38467.0,38466.0,0.08555]
[1610095777185,0.13632608,38467.0,38466.0,0.11758622]
[1610095777384,0.13632608,38467.0,38466.0,0.61758622]
[1610095779185,0.13632608,38467.0,38466.0,0.11758622]
[1610095779784,0.13632608,38467.0,38466.0,0.08555]
[1610095779985,0.13632608,38467.0,38466.0,0.11758892]
[1610095780186,0.13632608,38467.0,38466.0,0.149628]
[1610095781786,0.13632608,38467.0,38466.0,0.11789099]
[1610095783388,0.13632608,38467.0,38466.0,0.14962816]
[1610095788391,0.13632608,38467.0,38466.0,0.11758892]
[1610095788792,0.13632608,38467.0,38466.0,0.14962674]
[1610095793292,0.13632608,38467.0,38466.0,0.64962674]
[1610095793693,0.13632608,38467.0,38466.0,0.7130941]
[1610095795095,3.5988,38489.0,38466.0,0.7130941]
[1610095795295,0.18687835,38491.0,38466.0,0.7130941]
[1610095795496,0.18687835,38491.0,38472.0,3.0172]
[1610095796097,0.18687835,38491.0,38473.0,0.09549013]
[1610095796796,0.18687835,38491.0,38483.0,0.13632608]
[1610095796998,0.18687835,38491.0,38483.0,0.24269608]
[1610095797200,0.18687835,38491.0,38484.0,0.4570303]
[1610095797500,0.18687835,38491.0,38485.0,3.3142]
[1610095797699,0.18687835,38491.0,38485.0,3.34622808]
[1610095797899,0.18687835,38491.0,38486.0,0.09547887]
[1610095798801,0.18687835,38491.0,38489.0,0.13632608]
[1610095799202,0.18687835,38491.0,38490.0,0.03202694]
[1610095801203,0.18687835,38491.0,38486.0,0.0320258]
[1610095801402,0.18687835,38491.0,38490.0,0.03202535]
[1610095801603,0.18687835,38491.0,38487.0,0.03202499]
[1610095801904,0.18687835,38491.0,38490.0,0.03202457]
[1610095802103,0.18687835,38491.0,38488.0,0.03202478]
[1610095802403,0.18687835,38491.0,38490.0,0.03202501]
[1610095802604,0.18687835,38491.0,38489.0,0.03202507]
[1610095802903,0.18687835,38491.0,38486.0,0.03202515]
[1610095803202,0.18687835,38491.0,38490.0,0.03202515]
[1610095803403,0.18687835,38491.0,38486.0,0.03202515]
[1610095803808,0.18687835,38491.0,38490.0,0.03202527]
[1610095804006,0.18687835,38491.0,38487.0,0.03202507]
[1610095804207,0.18687835,38491.0,38486.0,0.03202505]
[1610095804506,0.18687835,38491.0,38488.0,0.03202549]
[1610095804909,0.18687835,38491.0,38487.0,0.0320256]
[1610095805109,0.18687835,38491.0,38486.0,0.03202566]
[1610095805308,0.18687835,38491.0,38488.0,0.03202536]
[1610095805511,0.18687835,38491.0,38487.0,0.03202575]
[1610095805809,0.18687835,38491.0,38489.0,0.03202537]
[1610095806210,0.18687835,38491.0,38488.0,0.03202553]
[1610095806413,0.18687835,38491.0,38486.0,0.03202539]
[1610095806611,0.18687835,38491.0,38489.0,0.03202499]
[1610095806811,0.18687835,38491.0,38487.0,0.03202512]
[1610095807112,0.18687835,38491.0,38490.0,0.03202516]
[1610095807515,0.18687835,38491.0,38488.0,0.03202524]
[1610095807713,0.18687835,38491.0,38486.0,0.03202505]
[1610095807913,0.18687835,38491.0,38489.0,0.03202515]
[1610095808314,0.18687835,38491.0,38487.0,0.03202535]
[1610095808515,0.18687835,38491.0,38486.0,0.53202524]
[1610095808718,0.18687835,38491.0,38488.0,0.03202527]
[1610095809116,0.18687835,38491.0,38490.0,0.5]
[1610095809516,0.18687835,38491.0,38490.0,0.53202497]
[1610095810816,0.32320443,38491.0,38490.0,0.03202497]
[1610095811016,0.32320443,38491.0,38486.0,0.53202235]
[1610095811418,0.32320443,38491.0,38490.0,0.03202444]
[1610095811617,0.32320443,38491.0,38489.0,0.5]
[1610095811817,0.32320443,38491.0,38490.0,0.53172338]
[1610095812019,0.32320443,38491.0,38490.0,0.53202446]
[1610095813023,5.13040443,38491.0,38490.0,0.53202446]
[1610095813222,5.13040443,38491.0,38490.0,0.05430108]
[1610095815327,5.81516157,38491.0,38490.0,0.05430108]
[1610095815726,5.81516157,38491.0,38466.0,0.08555]
[1610095815926,2.50796157,38491.0,38466.0,0.08555]
[1610095816127,2.61787157,38491.0,38467.0,0.03204492]
[1610095816328,3.186,38468.0,38467.0,0.03204492]
[1610095816828,3.186,38468.0,38467.0,0.03204619]
[1610095817130,3.186,38468.0,38458.0,0.03204592]
[1610095817328,3.186,38468.0,38467.0,0.03204649]
[1610095817629,3.186,38468.0,38457.0,0.03204658]
[1610095818030,3.186,38468.0,38467.0,0.03204576]
[1610095818329,3.186,38468.0,38458.0,0.03204576]
[1610095818529,3.186,38468.0,38467.0,0.03204562]
[1610095818732,3.186,38468.0,38459.0,0.0320461]
[1610095818931,0.61242608,38460.0,38457.0,0.03204641]
[1610095819230,0.13632608,38460.0,38459.0,0.03204675]
[1610095819431,3.81812608,38460.0,38459.0,0.03174545]
[1610095819630,3.81812608,38460.0,38458.0,0.03204754]
[1610095819930,3.81812608,38460.0,38457.0,0.0320495]
[1610095820131,3.81812608,38460.0,38459.0,0.03204941]
[1610095820333,3.81812608,38460.0,38458.0,0.03204976]
[1610095820531,3.81812608,38460.0,38457.0,0.03204928]
[1610095820832,3.81812608,38460.0,38459.0,0.03204925]
[1610095821032,3.81812608,38460.0,38458.0,0.03204715]
[1610095821433,3.81812608,38460.0,38459.0,0.03204813]
[1610095821637,3.81812608,38460.0,38459.0,0.0003013]
[1610095821933,0.13632608,38460.0,38459.0,0.0003013]
[1610095822135,0.13632608,38460.0,38457.0,0.03204814]
[1610095822335,0.13632608,38460.0,38459.0,0.0003013]
[1610095822837,3.1087,38477.0,38461.0,0.13632608]
[1610095823134,3.1087,38477.0,38462.0,0.00030128]
[1610095823334,3.1087,38477.0,38462.0,0.0320438]
[1610095824734,0.97853902,38491.0,38462.0,0.0320438]
[1610095824935,0.13632608,38463.0,38462.0,0.0320438]
[1610095825535,4.02442608,38463.0,38462.0,0.0320438]
[1610095825935,4.02442608,38463.0,38458.0,0.03204602]
[1610095826136,4.02442608,38463.0,38457.0,0.03204509]
[1610095826336,4.02442608,38463.0,38459.0,0.03204551]
[1610095826638,0.13632608,38463.0,38459.0,0.00030128]
[1610095826837,3.8159,38460.0,38457.0,0.03174485]
[1610095827137,3.8159,38460.0,38459.0,0.03204607]
[1610095827338,3.8159,38460.0,38458.0,0.03204555]
[1610095827738,3.8159,38460.0,38457.0,0.03204573]
[1610095827940,3.8159,38460.0,38459.0,0.0320457]
[1610095828139,3.8159,38460.0,38458.0,0.03204619]
[1610095828637,3.8159,38460.0,38458.0,0.00030129]
[1610095828838,3.8159,38460.0,38459.0,0.00030129]
[1610095829039,3.8159,38460.0,38459.0,0.50030129]
[1610095829238,3.8159,38460.0,38459.0,0.5]
[1610095829439,3.8159,38460.0,38459.0,0.53204589]
[1610095829639,3.8159,38460.0,38459.0,0.03204589]
[1610095830140,3.8159,38460.0,38459.0,0.5]
[1610095830341,3.8159,38460.0,38459.0,0.00030129]
[1610095831041,3.8159,38460.0,38457.0,0.00030129]
[1610095831241,3.8159,38460.0,38457.0,0.03204652]
[1610095831442,3.8159,38460.0,38459.0,0.00030129]
[1610095831741,3.8159,38460.0,38458.0,0.00030129]
[1610095831942,3.8159,38460.0,38459.0,0.0003013]
[1610095832442,3.8159,38460.0,38457.0,0.03204653]
[1610095832743,0.13632608,38463.0,38459.0,0.0003013]
[1610095833042,4.202,38460.0,38458.0,0.0003013]
[1610095833346,4.202,38460.0,38457.0,0.03174523]
[1610095833544,4.202,38460.0,38459.0,0.0003013]
[1610095833747,4.202,38460.0,38457.0,0.03204653]
[1610095834949,0.13632608,38458.0,38457.0,0.03204653]
[1610095838152,0.13632608,38458.0,38457.0,0.03174523]
[1610095838553,0.13632608,38458.0,38457.0,0.03204653]
[1610095839053,0.13632608,38458.0,38457.0,0.53204653]
[1610095839553,0.13632608,38458.0,38457.0,0.09554211]
[1610095839753,0.13632608,38458.0,38457.0,0.03204653]
[1610095843156,0.13632608,38458.0,38457.0,0.53204653]
[1610095843558,0.13632608,38458.0,38457.0,0.59554254]
[1610095844658,0.74792608,38458.0,38457.0,0.59554254]
[1610095846262,2.24792608,38458.0,38457.0,0.59554254]
[1610095848562,2.24792608,38458.0,38457.0,0.53204653]
[1610095852568,0.74792608,38458.0,38457.0,0.53204653]
[1610095854068,0.13632608,38458.0,38457.0,0.53204653]
[1610095855969,3.99882608,38458.0,38457.0,0.53204653]
[1610095859173,5.49882608,38458.0,38457.0,0.53204653]
[1610095860272,3.99882608,38458.0,38457.0,0.53204653]
[1610095864979,0.13632608,38458.0,38457.0,0.53204653]
[1610095870083,0.13632608,38458.0,38457.0,1.06484653]
[1610095870584,0.13632608,38458.0,38457.0,1.12834447]
[1610095871284,0.13632608,38458.0,38457.0,1.24423447]
[1610095871484,0.13632608,38458.0,38457.0,0.71143447]
[1610095871686,3.45042608,38458.0,38457.0,0.71143447]
[1610095882704,2.95042608,38458.0,38457.0,0.71143447]
[1610095882903,3.2639,38478.0,38457.0,0.71143447]
[1610095883202,3.2639,38478.0,38458.0,0.09553604]
[1610095883803,3.2639,38478.0,38458.0,0.59553604]
[1610095884303,3.2639,38478.0,38459.0,0.59553708]
[1610095884704,3.2639,38478.0,38460.0,0.09553758]
[1610095885404,0.13632608,38461.0,38460.0,0.09553758]
[1610095886505,3.1867,38478.0,38460.0,0.09553758]
[1610095886706,0.1569,38481.0,38460.0,0.09553758]
[1610095886906,0.1569,38481.0,38463.0,3.6312]
[1610095887407,0.08213,38483.0,38476.0,0.13632608]
[1610095887609,0.08213,38483.0,38477.0,0.03204227]
[1610095887808,0.6815413,38490.0,38477.0,0.03204227]
[1610095888207,3.86397304,38494.0,38477.0,0.03204227]
[1610095888708,3.1829,38494.0,38477.0,0.03204227]
[1610095889208,3.1829,38494.0,38482.0,0.13632608]
[1610095889408,0.68062805,38497.0,38482.0,0.13632608]
[1610095889608,0.20446043,38478.0,38477.0,0.03204227]
[1610095889808,0.20446043,38478.0,38475.0,3.0316]
[1610095890009,0.20446043,38478.0,38477.0,0.03203722]
[1610095890209,0.20446043,38478.0,38476.0,0.09551319]
[1610095890508,0.20446043,38478.0,38477.0,0.03203693]
[1610095891008,0.20446043,38478.0,38476.0,0.09551245]
[1610095891210,0.20446043,38478.0,38477.0,0.13632608]
[1610095891410,0.20446043,38478.0,38477.0,0.16836133]
[1610095893313,0.34078651,38478.0,38477.0,0.16836133]
[1610095894716,0.34078651,38478.0,38477.0,0.13632608]
[1610095894915,0.20446043,38478.0,38477.0,0.13632608]
[1610095895116,0.20446043,38478.0,38477.0,0.16836066]
[1610095898618,3.4638,38497.0,38477.0,0.16836066]
[1610095898619,0.1569,38499.0,38477.0,0.16836066]
[1610095898919,0.67767052,38508.0,38494.0,3.4551]
[1610095899119,0.67791556,38511.0,38493.0,0.10823]
[1610095899324,0.67791556,38511.0,38510.0,3.95852608]
[1610095899619,0.67913597,38523.0,38510.0,0.13632608]
[1610095899819,0.86431279,38532.0,38510.0,0.13632608]
[1610095899820,0.68094061,38534.0,38522.0,4.2495]
[1610095900319,0.68165425,38539.0,38523.0,0.00029896]
[1610095900622,0.681117,38544.0,38523.0,0.00029896]
[1610095900919,0.681117,38544.0,38535.0,3.8722]
[1610095901120,0.68174923,38548.0,38535.0,3.8722]
[1610095901320,0.68119532,38552.0,38546.0,0.13632608]
[1610095901521,0.68119532,38552.0,38547.0,0.00029888]
[1610095901721,0.68157093,38555.0,38547.0,0.00029888]
[1610095901922,0.68157093,38555.0,38546.0,0.13632608]
[1610095902122,0.1569,38558.0,38546.0,0.13632608]
[1610095902123,0.68225493,38556.0,38546.0,0.13632608]
[1610095902423,0.68225493,38556.0,38546.0,0.67552608]
[1610095902622,0.1569,38558.0,38546.0,0.13632608]
[1610095902823,0.1569,38558.0,38550.0,2.9158]
[1610095903423,0.13632608,38551.0,38550.0,2.9158]
[1610095905626,0.13632608,38551.0,38550.0,3.05212608]
[1610095905826,0.11428,38571.0,38550.0,0.13632608]
[1610095906025,3.9299,38557.0,38545.0,0.09883]
[1610095906225,0.11428,38571.0,38545.0,0.09883]
[1610095906426,4.3315,38557.0,38545.0,0.09883]
[1610095907527,0.13632608,38546.0,38545.0,0.09883]
[1610095907729,0.13632608,38546.0,38535.0,0.08941]
[1610095907930,0.13632608,38546.0,38530.0,4.1355]
[1610095908630,0.13632608,38546.0,38483.0,2.32767522]
[1610095908832,0.1569,38570.0,38483.0,2.32767522]
[1610095909031,0.1569,38570.0,38483.0,2.82767522]
[1610095909230,0.1569,38570.0,38526.0,4.1172]
[1610095909430,0.1569,38570.0,38559.0,0.13632608]
[1610095911537,0.13632608,38560.0,38559.0,0.13632608]
[1610095914736,0.4764,38586.0,38559.0,0.13632608]
[1610095915436,0.4764,38586.0,38567.0,0.13632608]
[1610095916838,0.4764,38586.0,38560.0,3.75051]
[1610095917338,0.59233,38586.0,38560.0,0.09481]
[1610095917539,0.13632608,38561.0,38560.0,0.09481]
[1610095917941,3.3289,38570.0,38560.0,0.09481]
[1610095919141,3.3289,38570.0,38560.0,0.59481]
[1610095919642,3.3289,38570.0,38569.0,0.13632608]
[1610095920643,0.13632608,38572.0,38569.0,0.13632608]
[1610095924447,0.13632608,38572.0,38563.0,4.2564]
[1610095924647,0.27283,38586.0,38563.0,4.2564]
[1610095924848,0.27283,38586.0,38560.0,0.59481]
[1610095925049,0.27283,38586.0,38572.0,3.6778]
[1610095925348,0.11593,38586.0,38572.0,3.6778]
[1610095925648,0.3195,38607.0,38582.0,0.13632608]
[1610095925948,0.3195,38607.0,38578.0,0.07998]
[1610095926352,0.42512,38607.0,38578.0,0.07998]
[1610095927650,0.42512,38607.0,38587.0,0.13632608]
[1610095928551,0.42512,38607.0,38578.0,0.54018]
[1610095929251,0.00031665,38606.0,38583.0,3.2045]
[1610095929651,0.13632608,38592.0,38591.0,0.13632608]
[1610095931753,0.13632608,38599.0,38591.0,0.76022608]
[1610095933553,0.1569,38608.0,38591.0,0.76022608]
[1610095933554,0.1569,38608.0,38598.0,0.13632608]
[1610095933957,0.00031662,38607.0,38598.0,0.13632608]
[1610095934655,0.00031662,38614.0,38598.0,0.13632608]
[1610095935056,0.0003166,38606.0,38598.0,0.13632608]
[1610095935256,0.0003166,38613.0,38598.0,0.13632608]
[1610095935456,0.0003166,38605.0,38598.0,0.13632608]
[1610095935657,0.0003166,38605.0,38602.0,0.13632608]
[1610095935856,0.00031656,38612.0,38602.0,0.13632608]
[1610095936059,0.00031656,38604.0,38602.0,0.13632608]
[1610095936359,0.00031656,38611.0,38602.0,0.13632608]
[1610095936561,0.09951,38615.0,38602.0,0.13632608]
[1610095936759,0.00031656,38610.0,38602.0,0.13632608]
[1610095937158,0.00031656,38614.0,38602.0,0.13632608]
[1610095937358,0.00031656,38619.0,38602.0,0.13632608]
[1610095937561,0.13632608,38603.0,38602.0,0.13632608]
[1610095939562,0.13632608,38603.0,38602.0,0.5]
[1610095941564,0.13632608,38603.0,38602.0,0.63632608]
[1610095943666,0.13632608,38603.0,38602.0,0.5]
[1610095947667,0.13632608,38603.0,38602.0,0.63632608]
[1610095949368,0.1366426,38603.0,38602.0,0.63632608]
[1610095951269,0.00031652,38603.0,38602.0,0.63632608]
[1610095951470,0.23655697,38607.0,38602.0,4.90692608]
[1610095951673,0.23655697,38607.0,38606.0,0.13632608]
[1610095951971,0.23687347,38607.0,38606.0,0.13632608]
[1610095952373,0.23655697,38607.0,38606.0,0.13662927]
[1610095952770,0.13632608,38622.0,38606.0,0.13662927]
[1610095952969,0.1569,38637.0,38606.0,0.13662927]
[1610095953270,0.00031643,38624.0,38614.0,3.387]
[1610095953670,0.00031643,38624.0,38623.0,0.13632608]
[1610095954075,0.13632608,38629.0,38623.0,0.13663097]
[1610095954372,0.13632608,38629.0,38623.0,0.13632608]
[1610095955574,3.19062608,38624.0,38623.0,0.13632608]
[1610095955974,3.19062608,38624.0,38619.0,0.12688]
[1610095956274,3.19062608,38624.0,38602.0,4.8156]
[1610095956475,3.19062608,38624.0,38603.0,0.00030485]
[1610095956977,3.34752608,38624.0,38603.0,0.00030485]
[1610095957176,0.29322608,38624.0,38603.0,0.00030485]
[1610095957375,0.13632608,38624.0,38608.0,3.9362]
[1610095957578,0.13632608,38624.0,38623.0,0.13632608]
[1610095959176,0.13632608,38624.0,38623.0,0.13663088]
[1610095960080,0.13632608,38624.0,38623.0,0.63663088]
[1610095960477,0.1569,38639.0,38623.0,0.63663088]
[1610095961079,0.1196,38640.0,38624.0,0.00030478]
[1610095961278,0.1196,38640.0,38624.0,3.94900478]
[1610095961678,0.13632608,38637.0,38624.0,3.94900478]
[1610095962480,0.13632608,38637.0,38624.0,4.44900478]
[1610095963080,0.13632608,38637.0,38624.0,0.50030478]
[1610095963281,0.13632608,38637.0,38624.0,0.5]
[1610095967686,0.13632608,38631.0,38624.0,0.5]
[1610095969788,0.13832608,38625.0,38624.0,0.5]
[1610095972493,0.002,38625.0,38624.0,0.5]
[1610095973696,0.13832608,38625.0,38624.0,0.5]
[1610095975498,0.13832608,38625.0,38624.0,0.50030483]
[1610095975896,3.72342608,38625.0,38624.0,0.5]
[1610095976696,3.72342608,38625.0,38624.0,0.0001]
[1610095977596,3.80092608,38625.0,38624.0,0.0001]
[1610095978198,3.72342608,38625.0,38624.0,0.0001]
[1610095978599,3.72342608,38625.0,38603.0,0.00030467]
[1610095978899,4.40847347,38625.0,38602.0,0.00030467]
[1610095979198,4.40847347,38625.0,38601.0,0.13632608]
[1610095979199,0.1569,38624.0,38604.0,0.00030467]
[1610095979499,4.20772,38615.0,38603.0,0.00030467]
[1610095979699,0.13632608,38606.0,38605.0,0.00030467]
[1610095979998,0.13632608,38606.0,38604.0,0.00030467]
[1610095980198,0.13632608,38606.0,38602.0,0.00030467]
[1610095980399,0.13632608,38606.0,38605.0,0.00030467]
[1610095980700,0.13632608,38606.0,38603.0,0.00030888]
[1610095980902,0.13632608,38606.0,38602.0,0.00030888]
[1610095981301,0.13632608,38606.0,38604.0,0.00030888]
[1610095981502,0.13632608,38606.0,38603.0,0.00030888]
[1610095981701,0.13632608,38606.0,38605.0,0.13632608]
[1610095982303,0.13632608,38606.0,38605.0,0.13663496]
[1610095983205,0.67922608,38606.0,38605.0,0.13663496]
[1610095984905,0.5429,38606.0,38605.0,0.13663496]
[1610095985306,0.5429,38606.0,38605.0,0.63663496]
[1610095985809,0.67922608,38606.0,38605.0,0.63663496]
[1610095987809,0.67922608,38606.0,38605.0,0.50030888]
[1610095993413,0.67922608,38606.0,38605.0,0.53194978]
[1610095993814,0.5429,38606.0,38605.0,0.66827586]
[1610095994615,0.12316,38623.0,38605.0,4.01637586]
[1610095994915,0.002,38625.0,38605.0,4.01637586]
[1610095995116,0.002,38625.0,38606.0,0.09520815]
[1610095996019,0.002,38625.0,38624.0,0.13632608]
[1610095996319,0.002,38625.0,38624.0,0.1366348]
[1610095998317,0.002,38625.0,38624.0,0.16826083]
[1610095998719,0.002,38625.0,38624.0,3.67446083]
[1610095998919,0.002,38625.0,38624.0,4.1428348]
[1610096002016,0.002,38625.0,38624.0,0.6366348]
[1610096005821,0.13832608,38625.0,38624.0,0.6366348]
[1610096006222,0.002,38625.0,38624.0,0.6366348]
[1610096007725,0.002,38625.0,38624.0,0.50030872]
[1610096007926,0.13832608,38625.0,38624.0,0.50030872]
[1610096009226,0.68452608,38625.0,38624.0,0.50030872]
[1610096011329,1.3754023,38625.0,38624.0,0.50030872]
[1610096011630,1.3754023,38625.0,38624.0,0.5]
[1610096011829,2.16076636,38625.0,38624.0,0.5]
[1610096012328,1.61456636,38625.0,38624.0,0.5]
[1610096013230,1.61456636,38625.0,38624.0,0.50030879]
[1610096013831,0.8292023,38625.0,38624.0,0.50030879]
[1610096014431,1.4034023,38625.0,38624.0,0.50030879]
[1610096014834,0.71252608,38625.0,38624.0,0.50030879]
[1610096015639,1.40367045,38625.0,38624.0,0.50030879]
[1610096016438,0.71252608,38625.0,38624.0,0.50030879]
[1610096023052,2.90385353,38625.0,38624.0,0.50030879]
[1610096023452,2.21252608,38625.0,38624.0,0.44750879]
[1610096023751,4.2593087,38625.0,38624.0,0.43830879]
[1610096024155,4.57005241,38625.0,38624.0,0.43830879]
[1610096024351,4.57005241,38625.0,38624.0,0.1905]
[1610096024951,4.57036886,38625.0,38624.0,0.1905]
[1610096025154,5.67059812,38625.0,38624.0,0.1905]
[1610096025353,5.67059812,38625.0,38624.0,0.1523]
[1610096026253,5.67028167,38625.0,38624.0,0.1523]
[1610096026454,5.67028167,38625.0,38624.0,0.150718]
[1610096027054,4.57005241,38625.0,38624.0,0.150718]
[1610096027557,2.49585241,38625.0,38624.0,0.150718]
[1610096027858,3.06530667,38625.0,38624.0,0.150718]
[1610096028255,1.61568497,38625.0,38624.0,0.15102682]
[1610096028756,2.07598497,38625.0,38624.0,0.15102682]
[1610096029357,1.2901658,38625.0,38624.0,0.15102682]
[1610096030659,0.59862608,38625.0,38624.0,0.15102682]
[1610096039669,1.29005663,38625.0,38624.0,0.15102682]
[1610096040468,0.59862608,38625.0,38624.0,0.15102682]
[1610096041272,0.85582302,38625.0,38624.0,0.15102682]
[1610096042974,0.85582302,38625.0,38624.0,0.18265458]
[1610096043176,0.85582302,38625.0,38624.0,0.15102682]
[1610096046477,1.54762613,38625.0,38624.0,0.15102682]
[1610096047479,2.33398109,38625.0,38624.0,0.15102682]
[1610096047978,3.83398109,38625.0,38624.0,0.15102682]
[1610096048782,4.7147982,38625.0,38624.0,0.08842682]
[1610096049180,4.7147982,38625.0,38624.0,0.07592682]
[1610096049382,4.7147982,38625.0,38624.0,0.07434507]
[1610096049781,4.7147982,38625.0,38624.0,0.07403625]
[1610096050581,4.7147982,38625.0,38624.0,0.03553625]
[1610096050782,5.81602954,38625.0,38624.0,0.03553625]
[1610096051691,7.20016167,38625.0,38624.0,0.03553625]
[1610096052189,5.81602954,38625.0,38624.0,0.03553625]
[1610096052484,4.31602954,38625.0,38624.0,0.03553625]
[1610096052684,5.35572954,38625.0,38624.0,0.03553625]
[1610096053385,4.82400381,38625.0,38624.0,0.03553625]
[1610096053886,4.2544982,38625.0,38624.0,0.03553625]
[1610096054084,4.82400771,38625.0,38624.0,0.03553625]
[1610096054486,4.2544982,38625.0,38624.0,0.03553625]
[1610096055785,3.37368109,38625.0,38624.0,0.03553625]
[1610096056185,1.87368109,38625.0,38624.0,0.03584515]
[1610096057289,2.31428109,38625.0,38624.0,0.03584515]
[1610096058488,1.87368109,38625.0,38624.0,0.03584515]
[1610096058792,0.95100005,38625.0,38624.0,0.03584515]
[1610096058992,0.25919694,38625.0,38624.0,0.03584515]
[1610096060295,0.07469694,38625.0,38624.0,0.20379362]
[1610096061397,0.09597,38632.0,38624.0,0.20379362]
[1610096061896,0.8108662,38640.0,38625.0,0.03192951]
[1610096062398,0.69122064,38639.0,38625.0,0.03192951]
[1610096062599,0.1196,38640.0,38625.0,0.03192951]
[1610096062999,0.81076645,38640.0,38625.0,0.03192951]